[Event "WYCC 2018 O14"]
[Site "Halkidiki"]
[Date "2018.10.26"]
[Round "7"]
[White "Mishra, Abhimanyu"]
[Black "Kouvidis, Ioannis"]
[Result "1-0"]
[ECO "C10"]
[WhiteElo "2149"]
[BlackElo "1896"]
[Annotator "NA"]
[PlyCount "81"]
[EventDate "2018.10.20"]
[EventType "swiss"]
[EventCountry "GRE"]
[SourceTitle "playchess.com"]
[Source "ChessBase"]
[SourceQuality "1"]
[TimeControl "40/5400+30:1800+30"]

1. e4 {[%emt 0:00:00]} e6 {[%emt 0:00:00]} 2. d4 {[%emt 0:00:00]} d5 {[%emt 0:00:00]} 3. Nc3 {[%emt 0:00:00]} Nc6 {[%emt 0:00:00]} 4. Nf3 {[%emt 0:00:00]} Nf6 {[%emt 0:00:01]} 5. e5 {[%emt 0:00:01]} Ne4 {[%emt 0:00:04]} 6. Ne2 {[%emt 0:00:09]} f6 {[%emt 0:05:44]} 7. Ng3 {[%emt 0:00:29]} fxe5 {[%emt 0:16:14]} 8. dxe5 {[%emt 0:11:20]} Be7 {[%emt 0:07:03]} 9. c3 {[%emt 0:12:06]} O-O {[%emt 0:23:03]} 10. Be3 {[%emt 0:12:47]} Bd7 {[%emt 0:09:23]} 11. Bd3 {[%emt 0:07:45]} Nc5 {[%emt 0:03:25]} 12. Bc2 {[%emt 0:10:53]} Be8 {[%emt 0:00:38]} 13. Qb1 {[%emt 0:09:38]} h6 {[%emt 0:08:02]} 14. Nd4 {[%emt 0:04:59]} Bf7 {[%emt 0:07:56]} 15. f4 {[%emt 0:02:38]} Nxd4 {[%emt 0:01:59]} 16. cxd4 {[%emt 0:01:46]} Nd7 {[%emt 0:00:04]} 17. O-O {[%emt 0:02:42]} c5 {[%emt 0:00:08]} 18. dxc5 {[%emt 0:05:02]} Bxc5 {[%emt 0:00:16]} 19. Bxc5 {[%emt 0:01:39]} Nxc5 {[%emt 0:00:01]} 20. b4 {[%emt 0:03:41]} Nd7 {[%emt 0:00:41]} 21. Qb2 {[%emt 0:01:29]} Qb6+ {[%emt 0:00:13]} 22. Kh1 {[%emt 0:00:38]} Rac8 {[%emt 0:01:08]} 23. Bd3 {[%emt 0:01:44]} Rc7 {[%emt 0:03:48]} 24. Rae1 {[%emt 0:01:48]} a5 {[%emt 0:01:28]} 25. a3 {[%emt 0:01:23]} axb4 {[%emt 0:00:18]} 26. axb4 {[%emt 0:00:19]} Nc5 {[%emt 0:01:13]} 27. Bb1 {[%emt 0:01:55]} Na6 {[%emt 0:03:25]} 28. b5 {[%emt 0:00:16]} Rc5 {[%emt 0:00:34]} 29. Bd3 {[%emt 0:00:35]} Nc7 {[%emt 0:00:16]} 30. Ne2 {[%emt 0:00:32]} Be8 {[%emt 0:00:52]} 31. Nd4 {[%emt 0:00:56]} Bd7 {[%emt 0:00:39]} 32. Nb3 {[%emt 0:02:23]} Rxb5 {[%emt 0:05:20]} 33. Bxb5 {[%emt 0:00:08]} Nxb5 {[%emt 0:00:34]} 34. Rc1 {[%emt 0:01:55]} Nd4 {[%emt 0:01:37]} 35. Qxd4 {[%emt 0:00:40]} Qxb3 {[%emt 0:00:03]} 36. Rb1 {[%emt 0:00:54]} Qc2 {[%emt 0:00:47]} 37. Rfc1 {[%emt 0:01:20]} Qe2 {[%emt 0:00:34]} 38. Rxb7 {[%emt 0:00:40]} Bc6 {[%emt 0:00:47]} 39. Rb2 {[%emt 0:01:17]} Rxf4 {[%emt 0:00:20]} 40. Qxf4 {[%emt 0:00:00]} Qxb2 {[%emt 0:00:00]} 41. Rxc6 {[%emt 0:00:55]} 1-0

[Event "WYCC 2018 O14"]
[Site "Halkidiki"]
[Date "2018.10.26"]
[Round "7"]
[White "Krallis, Christos"]
[Black "Shermuhammadov, Samandar"]
[Result "1-0"]
[ECO "A10"]
[WhiteElo "2139"]
[BlackElo "1962"]
[Annotator "NA"]
[PlyCount "99"]
[EventDate "2018.10.20"]
[EventType "swiss"]
[EventCountry "GRE"]
[SourceTitle "playchess.com"]
[Source "ChessBase"]
[SourceQuality "1"]
[TimeControl "40/5400+30:1800+30"]

1. c4 {[%emt 0:00:00]} d6 {[%emt 0:00:00]} 2. g3 {[%emt 0:00:00]} g6 {[%emt 0:00:00]} 3. Bg2 {[%emt 0:00:00]} Bg7 {[%emt 0:00:04]} 4. Nc3 {[%emt 0:00:00]} e5 {[%emt 0:00:37]} 5. d3 {[%emt 0:00:40]} Ne7 {[%emt 0:00:53]} 6. e4 {[%emt 0:02:32]} O-O {[%emt 0:00:29]} 7. Nge2 {[%emt 0:00:16]} Nbc6 {[%emt 0:02:20]} 8. O-O {[%emt 0:01:28]} Nd4 {[%emt 0:00:13]} 9. Nxd4 {[%emt 0:02:44]} exd4 {[%emt 0:00:10]} 10. Ne2 {[%emt 0:00:04]} c6 {[%emt 0:01:42]} 11. Nf4 {[%emt 0:06:35]} b6 {[%emt 0:04:20]} 12. b4 {[%emt 0:04:40]} Bb7 {[%emt 0:00:56]} 13. Qb3 {[%emt 0:00:56]} Qd7 {[%emt 0:04:45]} 14. a4 {[%emt 0:04:31]} a6 {[%emt 0:04:46]} 15. Bb2 {[%emt 0:07:10]} c5 {[%emt 0:01:38]} 16. a5 {[%emt 0:02:46]} Qc7 {[%emt 0:07:25]} 17. axb6 {[%emt 0:08:50]} Qxb6 {[%emt 0:00:23]} 18. Ba3 {[%emt 0:00:37]} a5 {[%emt 0:08:31]} 19. b5 {[%emt 0:00:11]} Be5 {[%emt 0:00:38]} 20. Bc1 {[%emt 0:01:44]} f5 {[%emt 0:02:11]} 21. f3 {[%emt 0:08:35]} a4 {[%emt 0:16:45]} 22. Rxa4 {[%emt 0:00:26]} Rxa4 {[%emt 0:00:08]} 23. Qxa4 {[%emt 0:00:03]} Ra8 {[%emt 0:00:27]} 24. Qc2 {[%emt 0:02:12]} Qa5 {[%emt 0:02:52]} 25. Ne2 {[%emt 0:07:58]} Qa4 {[%emt 0:08:06]} 26. Qxa4 {[%emt 0:05:51]} Rxa4 {[%emt 0:00:04]} 27. Bh3 {[%emt 0:03:37]} Ra2 {[%emt 0:01:02]} 28. Nf4 {[%emt 0:07:00]} Kf7 {[%emt 0:04:00]} 29. Bg2 {[%emt 0:09:02]} Nc8 {[%emt 0:04:08]} 30. g4 {[%emt 0:01:32]} Rc2 {[%emt 0:02:56]} 31. Nh3 {[%emt 0:01:21]} Nb6 {[%emt 0:02:35]} 32. Ng5+ {[%emt 0:03:21]} Kg8 {[%emt 0:00:13]} 33. exf5 {[%emt 0:02:08]} gxf5 {[%emt 0:00:30]} 34. gxf5 {[%emt 0:00:55]} Rxc1 {[%emt 0:01:35]} 35. Rxc1 {[%emt 0:00:06]} Bf4 {[%emt 0:00:03]} 36. Re1 {[%emt 0:00:09]} Bxg5 {[%emt 0:02:41]} 37. Re8+ {[%emt 0:00:03]} Kf7 {[%emt 0:01:19]} 38. Rb8 {[%emt 0:00:02]} Bc8 {[%emt 0:03:13]} 39. Rxb6 {[%emt 0:00:07]} Bxf5 {[%emt 0:00:31]} 40. Bf1 {[%emt 0:00:00]} d5 {[%emt 0:00:00]} 41. Rc6 {[%emt 0:10:18]} Be3+ {[%emt 0:01:50]} 42. Kg2 {[%emt 0:00:14]} dxc4 {[%emt 0:01:51]} 43. Rxc5 {[%emt 0:01:01]} Bxd3 {[%emt 0:00:32]} 44. Bxd3 {[%emt 0:00:30]} cxd3 {[%emt 0:00:04]} 45. Kf1 {[%emt 0:00:47]} d2 {[%emt 0:00:12]} 46. Rc7+ {[%emt 0:00:03]} Ke6 {[%emt 0:00:07]} 47. Ke2 {[%emt 0:00:03]} h5 {[%emt 0:00:19]} 48. Rh7 {[%emt 0:01:29]} Kd5 {[%emt 0:00:13]} 49. Rxh5+ {[%emt 0:00:05]} Kc4 {[%emt 0:00:07]} 50. Kd1 {[%emt 0:00:27]} 1-0

[Event "WYCC 2018 O14"]
[Site "Halkidiki"]
[Date "2018.10.26"]
[Round "7"]
[White "Rasti, Arvin"]
[Black "Radojicic, Aleksandar M"]
[Result "1/2-1/2"]
[ECO "A57"]
[WhiteElo "2064"]
[BlackElo "1814"]
[Annotator "NA"]
[PlyCount "43"]
[EventDate "2018.10.20"]
[EventType "swiss"]
[EventCountry "GRE"]
[SourceTitle "playchess.com"]
[Source "ChessBase"]
[SourceQuality "1"]
[TimeControl "40/5400+30:1800+30"]

1. d4 {[%emt 0:00:00]} Nf6 {[%emt 0:00:00]} 2. c4 {[%emt 0:00:00]} c5 {[%emt 0:00:00]} 3. d5 {[%emt 0:00:00]} b5 {[%emt 0:00:00]} 4. Qc2 {[%emt 0:00:00]} b4 {[%emt 0:00:46]} 5. e4 {[%emt 0:04:04]} d6 {[%emt 0:02:07]} 6. Nf3 {[%emt 0:01:26]} g6 {[%emt 0:03:42]} 7. Bg5 {[%emt 0:03:07]} Qc7 {[%emt 0:14:35]} 8. Nbd2 {[%emt 0:02:40]} Bg7 {[%emt 0:01:39]} 9. Bd3 {[%emt 0:02:34]} O-O {[%emt 0:00:44]} 10. h3 {[%emt 0:01:05]} a5 {[%emt 0:11:23]} 11. O-O {[%emt 0:01:44]} e6 {[%emt 0:08:56]} 12. Rfe1 {[%emt 0:03:09]} h6 {[%emt 0:06:54]} 13. Bxf6 {[%emt 0:06:54]} Bxf6 {[%emt 0:01:20]} 14. dxe6 {[%emt 0:00:49]} Bxe6 {[%emt 0:00:29]} 15. Nf1 {[%emt 0:02:21]} Nc6 {[%emt 0:18:02]} 16. Ne3 {[%emt 0:00:23]} Nd4 {[%emt 0:03:22]} 17. Nxd4 {[%emt 0:00:32]} Bxd4 {[%emt 0:00:22]} 18. Nd5 {[%emt 0:00:47]} Bxd5 {[%emt 0:00:53]} 19. exd5 {[%emt 0:00:06]} Qd7 {[%emt 0:01:08]} 20. Qd2 {[%emt 0:00:35]} Rfe8 {[%emt 0:04:38]} 21. Kh1 {[%emt 0:02:13]} a4 22. Rad1 1/2-1/2

[Event "WYCC 2018 O14"]
[Site "Halkidiki"]
[Date "2018.10.26"]
[Round "7"]
[White "Antonica, Dragos-Andrei"]
[Black "Ngo, Duc Tri"]
[Result "0-1"]
[ECO "D10"]
[WhiteElo "2061"]
[BlackElo "1883"]
[Annotator "NA"]
[PlyCount "90"]
[EventDate "2018.10.20"]
[EventType "swiss"]
[EventCountry "GRE"]
[SourceTitle "playchess.com"]
[Source "ChessBase"]
[SourceQuality "1"]
[TimeControl "40/5400+30:1800+30"]

1. d4 d5 {[%emt 0:00:00]} 2. c4 {[%emt 0:00:07]} c6 {[%emt 0:00:00]} 3. Nc3 {[%emt 0:00:45]} dxc4 {[%emt 0:01:03]} 4. g3 {[%emt 0:05:42]} Nf6 {[%emt 0:00:09]} 5. Bg2 {[%emt 0:00:03]} e5 6. dxe5 {[%emt 0:12:58]} Qxd1+ {[%emt 0:01:58]} 7. Nxd1 {[%emt 0:00:14]} Bb4+ {[%emt 0:04:58]} 8. Bd2 {[%emt 0:03:29]} Bxd2+ {[%emt 0:00:27]} 9. Kxd2 {[%emt 0:00:01]} Nd5 {[%emt 0:08:57]} 10. e4 {[%emt 0:22:28]} Nb4 {[%emt 0:00:30]} 11. Kc3 {[%emt 0:00:55]} a5 {[%emt 0:00:09]} 12. Bh3 {[%emt 0:25:18]} Nd7 {[%emt 0:01:14]} 13. Bxd7+ {[%emt 0:04:53]} Bxd7 {[%emt 0:00:06]} 14. a3 {[%emt 0:01:01]} b5 {[%emt 0:05:41]} 15. b3 {[%emt 0:04:33]} Nd3 {[%emt 0:00:07]} 16. bxc4 {[%emt 0:00:31]} Nxe5 {[%emt 0:00:05]} 17. Ne3 {[%emt 0:00:21]} Be6 {[%emt 0:00:23]} 18. cxb5 {[%emt 0:03:18]} cxb5 {[%emt 0:00:04]} 19. f4 {[%emt 0:00:52]} Rc8+ {[%emt 0:01:51]} 20. Kd2 {[%emt 0:03:47]} Nc4+ {[%emt 0:00:06]} 21. Nxc4 {[%emt 0:00:14]} Rxc4 {[%emt 0:00:04]} 22. Ke3 {[%emt 0:01:15]} O-O {[%emt 0:00:08]} 23. Ne2 {[%emt 0:00:40]} Re8 {[%emt 0:00:38]} 24. Rhc1 {[%emt 0:01:11]} Rec8 {[%emt 0:09:23]} 25. Rxc4 {[%emt 0:02:08]} Rxc4 {[%emt 0:00:11]} 26. Rd1 {[%emt 0:02:33]} g6 {[%emt 0:02:32]} 27. Rd8+ {[%emt 0:02:15]} Kg7 {[%emt 0:00:04]} 28. Rd4 {[%emt 0:01:00]} Rc5 {[%emt 0:00:17]} 29. Kd2 {[%emt 0:00:10]} g5 {[%emt 0:01:37]} 30. f5 {[%emt 0:00:46]} Bc4 {[%emt 0:00:05]} 31. Rd6 {[%emt 0:00:51]} Bxe2 {[%emt 0:00:59]} 32. Kxe2 {[%emt 0:00:01]} Rc2+ {[%emt 0:00:22]} 33. Kf3 {[%emt 0:00:44]} h5 {[%emt 0:00:07]} 34. Rd3 {[%emt 0:00:11]} Rxh2 {[%emt 0:00:28]} 35. Rb3 {[%emt 0:01:03]} h4 {[%emt 0:02:21]} 36. Rxb5 {[%emt 0:00:42]} Rh3 {[%emt 0:00:05]} 37. Rxa5 {[%emt 0:00:38]} Rxg3+ {[%emt 0:00:06]} 38. Kf2 {[%emt 0:00:01]} g4 {[%emt 0:02:25]} 39. e5 {[%emt 0:01:08]} Rf3+ {[%emt 0:00:09]} 40. Kg1 {[%emt 0:00:00]} g3 {[%emt 0:00:00]} 41. Ra4 {[%emt 0:14:47]} h3 {[%emt 0:01:17]} 42. Rg4+ {[%emt 0:00:21]} Kf8 {[%emt 0:00:18]} 43. f6 {[%emt 0:00:18]} g2 {[%emt 0:00:09]} 44. Kh2 {[%emt 0:00:38]} Rf1 45. Rb4 {[%emt 0:00:42]} g1=Q+ {[%emt 0:00:11]} 0-1

[Event "WYCC 2018 O14"]
[Site "Halkidiki"]
[Date "2018.10.26"]
[Round "7"]
[White "Soriano Quispe, Ivan Excender"]
[Black "Trifan, Andrei Ioan"]
[Result "0-1"]
[ECO "E98"]
[WhiteElo "2054"]
[BlackElo "2290"]
[Annotator "NA"]
[PlyCount "136"]
[EventDate "2018.10.20"]
[EventType "swiss"]
[EventCountry "GRE"]
[SourceTitle "playchess.com"]
[Source "ChessBase"]
[SourceQuality "1"]
[TimeControl "40/5400+30:1800+30"]

1. d4 {[%emt 0:00:00]} Nf6 {[%emt 0:00:28]} 2. c4 {[%emt 0:00:00]} g6 {[%emt 0:01:30]} 3. Nc3 {[%emt 0:00:00]} Bg7 {[%emt 0:00:57]} 4. e4 {[%emt 0:00:00]} d6 {[%emt 0:00:46]} 5. Nf3 {[%emt 0:00:00]} O-O {[%emt 0:01:15]} 6. Be2 {[%emt 0:00:03]} e5 {[%emt 0:00:47]} 7. O-O {[%emt 0:00:27]} Nc6 {[%emt 0:01:47]} 8. d5 {[%emt 0:00:25]} Ne7 {[%emt 0:00:14]} 9. Ne1 {[%emt 0:00:17]} Nd7 {[%emt 0:01:25]} 10. Be3 {[%emt 0:00:14]} f5 {[%emt 0:01:23]} 11. f3 {[%emt 0:00:07]} f4 {[%emt 0:00:34]} 12. Bf2 {[%emt 0:00:06]} g5 $16 {[%emt 0:01:03]} 13. g4 {[%emt 0:01:16]} fxg3 {[%emt 0:16:26]} 14. hxg3 {[%emt 0:00:19]} Ng6 {[%emt 0:07:44]} 15. Ng2 {[%emt 0:00:21]} Nf6 {[%emt 0:09:11]} 16. Ne3 {[%emt 0:02:19]} Bh3 {[%emt 0:02:26]} 17. Nf5 {[%emt 0:09:12]} Ne7 {[%emt 0:07:27]} 18. Nxg7 {[%emt 0:35:26]} Kxg7 {[%emt 0:00:24]} 19. Qd2 {[%emt 0:00:50]} g4 {[%emt 0:07:34]} 20. fxg4 {[%emt 0:19:09]} Qd7 {[%emt 0:06:38]} 21. Qg5+ {[%emt 0:02:34]} Ng6 {[%emt 0:03:09]} 22. Qf5 {[%emt 0:04:08]} Qe8 {[%emt 0:06:32]} 23. Qg5 {[%emt 0:08:32]} h6 {[%emt 0:04:16]} 24. Qd2 {[%emt 0:00:18]} Bxf1 {[%emt 0:01:17]} 25. Rxf1 {[%emt 0:00:02]} Qd7 {[%emt 0:01:55]} 26. Qd1 {[%emt 0:09:47]} Nh7 {[%emt 0:00:14]} 27. Be3 {[%emt 0:00:34]} Rxf1+ {[%emt 0:02:59]} 28. Qxf1 {[%emt 0:00:02]} Qe7 {[%emt 0:01:33]} 29. Qc1 {[%emt 0:03:29]} Ng5 {[%emt 0:03:15]} 30. Kg2 {[%emt 0:00:07]} a5 {[%emt 0:01:29]} 31. Nd1 {[%emt 0:01:40]} Qf6 {[%emt 0:01:48]} 32. Qd2 {[%emt 0:01:18]} Ne7 {[%emt 0:01:28]} 33. Nf2 {[%emt 0:01:55]} Qg6 {[%emt 0:01:01]} 34. Bd3 {[%emt 0:00:32]} Ng8 {[%emt 0:01:09]} 35. c5 {[%emt 0:00:29]} Nf6 {[%emt 0:02:51]} 36. cxd6 {[%emt 0:00:11]} cxd6 {[%emt 0:00:05]} 37. Qc2 {[%emt 0:00:28]} Nf7 {[%emt 0:01:25]} 38. Qe2 {[%emt 0:00:48]} Kh8 {[%emt 0:00:53]} 39. Qd1 {[%emt 0:01:01]} Rg8 {[%emt 0:00:21]} 40. Be2 {[%emt 0:00:00]} Nxe4 {[%emt 0:00:00]} 41. Qc2 {[%emt 0:16:32]} Nf6 {[%emt 0:06:27]} 42. Qb3 {[%emt 0:02:20]} h5 {[%emt 0:01:58]} 43. Bd3 {[%emt 0:02:46]} e4 {[%emt 0:02:19]} 44. Be2 {[%emt 0:02:15]} Nxg4 {[%emt 0:06:24]} 45. Nxg4 {[%emt 0:00:03]} hxg4 {[%emt 0:00:44]} 46. Qxb7 {[%emt 0:00:03]} Ne5 {[%emt 0:02:04]} 47. Qe7 {[%emt 0:00:16]} Qh5 {[%emt 0:07:54]} 48. Qf6+ {[%emt 0:03:11]} Kh7 {[%emt 0:00:17]} 49. Bd4 {[%emt 0:02:06]} Qh3+ {[%emt 0:01:31]} 50. Kf2 {[%emt 0:00:02]} Qh2+ {[%emt 0:01:44]} 51. Ke3 {[%emt 0:00:13]} Qxg3+ {[%emt 0:01:01]} 52. Kxe4 {[%emt 0:00:04]} Qg2+ {[%emt 0:01:32]} 53. Kf5 {[%emt 0:00:49]} Qh3 {[%emt 0:02:36]} 54. Bxe5 {[%emt 0:05:37]} Qh5+ {[%emt 0:00:42]} 55. Ke4 {[%emt 0:00:44]} dxe5 {[%emt 0:00:16]} 56. Bd3 {[%emt 0:00:37]} Qg5 {[%emt 0:01:17]} 57. Qxe5 {[%emt 0:01:01]} Qxe5+ {[%emt 0:00:32]} 58. Kxe5+ {[%emt 0:00:01]} Kg7 {[%emt 0:00:26]} 59. Be4 {[%emt 0:00:58]} g3 {[%emt 0:00:14]} 60. Bg2 {[%emt 0:00:53]} Kf7 {[%emt 0:00:30]} 61. d6 {[%emt 0:00:33]} Ke8 {[%emt 0:00:02]} 62. a3 {[%emt 0:00:49]} a4 {[%emt 0:00:06]} 63. Kd5 {[%emt 0:00:29]} Kd7 {[%emt 0:00:21]} 64. Bh3+ {[%emt 0:00:33]} Kd8 {[%emt 0:00:01]} 65. Bg2 {[%emt 0:00:01]} Rf8 {[%emt 0:00:41]} 66. Kc5 {[%emt 0:01:01]} Rf2 {[%emt 0:00:09]} 67. Bh3 {[%emt 0:00:17]} Rxb2 {[%emt 0:00:38]} 68. Kc4 {[%emt 0:00:15]} g2 {[%emt 0:00:08]} 0-1

[Event "WYCC 2018 O14"]
[Site "Halkidiki"]
[Date "2018.10.26"]
[Round "7"]
[White "Gavriil, Odysseas-Panagiotis"]
[Black "Czopor, Maciej"]
[Result "1-0"]
[ECO "E59"]
[WhiteElo "2009"]
[BlackElo "2219"]
[Annotator "NA"]
[PlyCount "135"]
[EventDate "2018.10.20"]
[EventType "swiss"]
[EventCountry "GRE"]
[SourceTitle "playchess.com"]
[Source "ChessBase"]
[SourceQuality "1"]
[TimeControl "40/5400+30:1800+30"]

1. d4 {[%emt 0:00:10]} Nf6 {[%emt 0:00:00]} 2. c4 {[%emt 0:00:43]} e6 {[%emt 0:00:06]} 3. Nc3 {[%emt 0:00:14]} Bb4 {[%emt 0:00:43]} 4. e3 {[%emt 0:00:30]} O-O {[%emt 0:01:14]} 5. Bd3 {[%emt 0:00:15]} d5 {[%emt 0:01:02]} 6. Nf3 {[%emt 0:00:36]} c5 {[%emt 0:01:00]} 7. O-O {[%emt 0:00:30]} Nc6 {[%emt 0:02:03]} 8. a3 {[%emt 0:05:25]} Bxc3 {[%emt 0:01:09]} 9. bxc3 {[%emt 0:00:11]} dxc4 {[%emt 0:00:32]} 10. Bxc4 {[%emt 0:00:53]} Qc7 {[%emt 0:00:52]} 11. Bd3 {[%emt 0:06:42]} e5 {[%emt 0:19:07]} 12. Qc2 {[%emt 0:09:24]} Re8 {[%emt 0:10:08]} 13. e4 {[%emt 0:09:15]} Nd7 {[%emt 0:15:58]} 14. Be3 {[%emt 0:03:34]} b6 {[%emt 0:05:09]} 15. d5 {[%emt 0:06:44]} Nd8 {[%emt 0:05:32]} 16. Nd2 {[%emt 0:02:53]} f6 {[%emt 0:03:00]} 17. a4 {[%emt 0:00:48]} a5 {[%emt 0:06:42]} 18. f4 {[%emt 0:11:21]} Nf7 {[%emt 0:02:35]} 19. f5 {[%emt 0:01:00]} Nd6 {[%emt 0:01:45]} 20. Nc4 {[%emt 0:00:31]} Nxc4 {[%emt 0:04:17]} 21. Bxc4 {[%emt 0:02:28]} Qd6 {[%emt 0:00:08]} 22. g4 {[%emt 0:01:34]} h6 {[%emt 0:03:03]} 23. Rf3 {[%emt 0:01:01]} Nf8 {[%emt 0:00:45]} 24. h4 {[%emt 0:04:45]} Nh7 {[%emt 0:01:53]} 25. Rb1 {[%emt 0:01:00]} Bd7 {[%emt 0:01:19]} 26. Rf2 {[%emt 0:02:16]} Rab8 {[%emt 0:02:44]} 27. Bb5 {[%emt 0:01:27]} Nf8 {[%emt 0:01:22]} 28. Qd3 {[%emt 0:02:46]} Kf7 {[%emt 0:00:26]} 29. Rfb2 {[%emt 0:04:09]} Rec8 {[%emt 0:02:42]} 30. Qc4 {[%emt 0:01:42]} Rc7 {[%emt 0:00:40]} 31. Kf2 {[%emt 0:04:39]} Bxb5 {[%emt 0:01:18]} 32. Rxb5 {[%emt 0:00:26]} Nd7 {[%emt 0:00:15]} 33. Rg1 {[%emt 0:02:18]} Rh8 {[%emt 0:00:17]} 34. Ke1 {[%emt 0:00:52]} Rcc8 {[%emt 0:01:09]} 35. Rb2 {[%emt 0:00:39]} Rb8 {[%emt 0:00:58]} 36. Rbg2 {[%emt 0:03:47]} Rbg8 {[%emt 0:01:16]} 37. Kd1 {[%emt 0:03:31]} Rh7 {[%emt 0:01:08]} 38. Kc1 {[%emt 0:00:41]} Rgh8 {[%emt 0:00:53]} 39. Qb5 {[%emt 0:00:50]} Rg8 {[%emt 0:01:22]} 40. Qc6 {[%emt 0:00:00]} Ke7 {[%emt 0:00:00]} 41. g5 {[%emt 0:03:30]} hxg5 {[%emt 0:05:17]} 42. hxg5 {[%emt 0:00:45]} Rf8 {[%emt 0:07:12]} 43. gxf6+ {[%emt 0:00:56]} gxf6 {[%emt 0:00:58]} 44. Rg7+ {[%emt 0:07:00]} Rf7 {[%emt 0:00:09]} 45. Rxh7 {[%emt 0:00:27]} Rxh7 {[%emt 0:00:09]} 46. Rg8 {[%emt 0:00:07]} Rh1+ {[%emt 0:03:45]} 47. Kc2 {[%emt 0:01:30]} Qxc6 {[%emt 0:01:33]} 48. dxc6 {[%emt 0:00:12]} Kd6 {[%emt 0:00:19]} 49. cxd7 {[%emt 0:00:28]} Kxd7 {[%emt 0:00:09]} 50. Rb8 {[%emt 0:00:29]} Kc7 {[%emt 0:01:45]} 51. Rf8 {[%emt 0:00:08]} Rh4 {[%emt 0:00:16]} 52. Rf7+ {[%emt 0:00:33]} Kd8 {[%emt 0:00:12]} 53. Rxf6 {[%emt 0:00:20]} Rxe4 {[%emt 0:00:05]} 54. Bg5 {[%emt 0:01:06]} Rxa4 {[%emt 0:00:10]} 55. Rxb6+ {[%emt 0:01:08]} Ke8 {[%emt 0:00:05]} 56. Re6+ {[%emt 0:00:11]} Kf7 {[%emt 0:00:05]} 57. Re7+ {[%emt 0:00:27]} Kf8 {[%emt 0:00:04]} 58. Rxe5 {[%emt 0:00:03]} Rg4 {[%emt 0:00:27]} 59. Be7+ {[%emt 0:00:07]} Kf7 {[%emt 0:00:04]} 60. Bxc5 {[%emt 0:00:13]} a4 {[%emt 0:00:07]} 61. Re2 {[%emt 0:02:33]} Kf6 {[%emt 0:00:40]} 62. Rf2 {[%emt 0:00:07]} Rc4 {[%emt 0:00:09]} 63. Bd4+ {[%emt 0:00:15]} Kf7 {[%emt 0:00:04]} 64. f6 {[%emt 0:00:19]} Rc8 {[%emt 0:00:05]} 65. Kb1 {[%emt 0:00:49]} Ra8 {[%emt 0:00:25]} 66. Ka2 {[%emt 0:00:08]} Ra6 {[%emt 0:00:03]} 67. Ka3 {[%emt 0:00:08]} Ra8 {[%emt 0:00:04]} 68. Rb2 {[%emt 0:00:11]} 1-0

[Event "WYCC 2018 O14"]
[Site "Halkidiki"]
[Date "2018.10.26"]
[Round "7"]
[White "Egorov, Mikhail"]
[Black "Galkin, Gleb"]
[Result "1/2-1/2"]
[ECO "D30"]
[WhiteElo "2006"]
[BlackElo "2134"]
[Annotator "NA"]
[PlyCount "118"]
[EventDate "2018.10.20"]
[EventType "swiss"]
[EventCountry "GRE"]
[SourceTitle "playchess.com"]
[Source "ChessBase"]
[SourceQuality "1"]
[TimeControl "40/5400+30:1800+30"]

1. d4 {[%emt 0:00:00]} d5 {[%emt 0:00:00]} 2. c4 {[%emt 0:00:00]} e6 {[%emt 0:00:00]} 3. Nf3 {[%emt 0:00:00]} Nf6 {[%emt 0:00:00]} 4. g3 {[%emt 0:00:00]} Bb4+ {[%emt 0:00:00]} 5. Bd2 {[%emt 0:00:00]} Be7 $11 {[%emt 0:00:03] LiveBook: 3469 Games} 6. Bg2 {[%emt 0:00:17]} O-O {[%emt 0:00:06]} 7. O-O {[%emt 0:00:50]} c6 {[%emt 0:00:05]} 8. Qc2 {[%emt 0:01:00]} b6 {[%emt 0:00:08]} 9. Rd1 {[%emt 0:09:23]} Nbd7 {[%emt 0:03:39]} 10. Bf4 {[%emt 0:03:11]} Bb7 {[%emt 0:00:28]} 11. Ne5 {[%emt 0:00:47]} Nh5 {[%emt 0:04:04]} 12. Bd2 {[%emt 0:02:09]} Nhf6 {[%emt 0:00:21]} 13. cxd5 {[%emt 0:00:36]} cxd5 {[%emt 0:00:04]} 14. Nc6 {[%emt 0:00:31]} Bxc6 {[%emt 0:00:06]} 15. Qxc6 {[%emt 0:00:07]} Rc8 {[%emt 0:00:04]} 16. Qb5 {[%emt 0:00:12]} Ne8 {[%emt 0:00:10]} 17. Qd3 {[%emt 0:00:39]} Nd6 {[%emt 0:00:48]} 18. b3 {[%emt 0:00:20]} f5 {[%emt 0:13:04]} 19. e3 {[%emt 0:09:14]} Qc7 {[%emt 0:10:45]} 20. Na3 {[%emt 0:14:31]} Ne4 {[%emt 0:03:02]} 21. Nb5 {[%emt 0:03:36]} Qb7 {[%emt 0:01:05]} 22. Be1 {[%emt 0:02:11]} a6 {[%emt 0:01:40]} 23. Nc3 {[%emt 0:01:21]} b5 {[%emt 0:06:11]} 24. f3 {[%emt 0:01:28]} Nxc3 {[%emt 0:02:33]} 25. Bxc3 {[%emt 0:00:08]} Qc6 {[%emt 0:02:39]} 26. Rac1 {[%emt 0:09:00]} Ba3 {[%emt 0:03:46]} 27. Bb2 {[%emt 0:03:13]} Qd6 {[%emt 0:03:08]} 28. Bxa3 {[%emt 0:00:30]} Qxa3 {[%emt 0:00:06]} 29. Rc2 {[%emt 0:00:41]} Nb6 {[%emt 0:01:56]} 30. Rdd2 {[%emt 0:03:52]} Qd6 {[%emt 0:05:38]} 31. Bh3 {[%emt 0:05:48]} Qb4 {[%emt 0:05:11]} 32. Qe2 {[%emt 0:02:13]} g6 {[%emt 0:07:02]} 33. Kf2 {[%emt 0:04:28]} Qd6 {[%emt 0:04:31]} 34. Qd3 {[%emt 0:02:42]} Nd7 {[%emt 0:02:12]} 35. Rd1 {[%emt 0:06:27]} Rc6 {[%emt 0:02:57]} 36. Rdc1 {[%emt 0:03:42]} Rfc8 {[%emt 0:00:11]} 37. Bf1 {[%emt 0:04:04]} Nb6 {[%emt 0:05:52]} 38. Be2 {[%emt 0:01:50]} Kf7 {[%emt 0:07:59]} 39. Qd2 {[%emt 0:01:42]} Ke7 {[%emt 0:04:32]} 40. Rxc6 {[%emt 0:00:00]} Rxc6 {[%emt 0:00:00]} 41. Rxc6 {[%emt 0:01:51]} Qxc6 {[%emt 0:00:10]} 42. Qa5 {[%emt 0:01:44]} Na8 {[%emt 0:04:17]} 43. Qb4+ {[%emt 0:02:09]} Qd6 {[%emt 0:02:35]} 44. Qc3 {[%emt 0:03:59]} Qc7 {[%emt 0:01:57]} 45. Qd2 {[%emt 0:03:34]} Qc6 {[%emt 0:02:01]} 46. Qb4+ {[%emt 0:03:34]} Qd6 {[%emt 0:00:10]} 47. Qa5 {[%emt 0:00:19]} Qb6 {[%emt 0:03:23]} 48. Qe1 {[%emt 0:00:54]} Nc7 {[%emt 0:03:06]} 49. Qc1 {[%emt 0:02:00]} b4 {[%emt 0:05:10]} 50. a4 {[%emt 0:00:55]} a5 {[%emt 0:01:17]} 51. Ke1 {[%emt 0:04:20]} Kd6 {[%emt 0:00:51]} 52. Kd2 {[%emt 0:03:58]} Qc6 {[%emt 0:03:28]} 53. Qxc6+ {[%emt 0:00:09]} Kxc6 {[%emt 0:00:04]} 54. Bd3 {[%emt 0:00:23]} Kd6 {[%emt 0:05:03]} 55. e4 {[%emt 0:01:02]} Ke7 {[%emt 0:00:50]} 56. Ke3 {[%emt 0:01:01]} Kf6 {[%emt 0:01:22]} 57. exf5 {[%emt 0:00:35]} exf5 {[%emt 0:00:23]} 58. h4 h6 {[%emt 0:00:45]} 59. Be2 {[%emt 0:05:21]} g5 {[%emt 0:00:29]} 1/2-1/2